{"text_format":"3","workbook":"xlsx","n_sheets":1,"sheets":["Planificateur de budget"],"not_rendered":{"charts":1,"defined_names":1},"read":"whole","date_system":"1900"}

{"sheet":"Planificateur de budget","index":0,"n_rows":21,"n_cols":6,"rows_kept":21}
[null,"Planificateur de budget vacances"]
[]
[null,"BUDGET PAR CATÉGORIE"]
[null,"Catégories","Budget planifié","Budget détaillé","Disponible / (Plus)"]
[null,"Transports",{"v":750,"d":"750 $"},{"$f":"SUMIF(Tableau2[Catégorie],Tableau1[[#This Row],[Catégories]],Tableau2[Montant])","v":{"v":720,"d":"720 $"}},{"$f":"IFERROR(Tableau1[[#This Row],[Budget planifié]]-Tableau1[[#This Row],[Budget détaillé]],\"\")","v":{"v":30,"d":"30 $"}}]
[null,"Hébergement",{"v":250,"d":"250 $"},{"$f":"SUMIF(Tableau2[Catégorie],Tableau1[[#This Row],[Catégories]],Tableau2[Montant])","v":{"v":300,"d":"300 $"}},{"$f":"IFERROR(Tableau1[[#This Row],[Budget planifié]]-Tableau1[[#This Row],[Budget détaillé]],\"\")","v":{"v":-50,"d":"(50 $)"}}]
[null,"Nourriture",{"v":100,"d":"100 $"},{"$f":"SUMIF(Tableau2[Catégorie],Tableau1[[#This Row],[Catégories]],Tableau2[Montant])","v":{"v":80,"d":"80 $"}},{"$f":"IFERROR(Tableau1[[#This Row],[Budget planifié]]-Tableau1[[#This Row],[Budget détaillé]],\"\")","v":{"v":20,"d":"20 $"}}]
[null,"Devoirs",{"v":500,"d":"500 $"},{"$f":"SUMIF(Tableau2[Catégorie],Tableau1[[#This Row],[Catégories]],Tableau2[Montant])","v":{"v":500,"d":"500 $"}},{"$f":"IFERROR(Tableau1[[#This Row],[Budget planifié]]-Tableau1[[#This Row],[Budget détaillé]],\"\")","v":{"v":0,"d":"0 $"}}]
[null,"Souvenirs",{"v":50,"d":"50 $"},{"$f":"SUMIF(Tableau2[Catégorie],Tableau1[[#This Row],[Catégories]],Tableau2[Montant])","v":{"v":0,"d":"0 $"}},{"$f":"IFERROR(Tableau1[[#This Row],[Budget planifié]]-Tableau1[[#This Row],[Budget détaillé]],\"\")","v":{"v":50,"d":"50 $"}}]
[null,"Autres",{"v":50,"d":"50 $"},{"$f":"SUMIF(Tableau2[Catégorie],Tableau1[[#This Row],[Catégories]],Tableau2[Montant])","v":{"v":0,"d":"0 $"}},{"$f":"IFERROR(Tableau1[[#This Row],[Budget planifié]]-Tableau1[[#This Row],[Budget détaillé]],\"\")","v":{"v":50,"d":"50 $"}}]
[null,"Fonds de prévoyance",{"v":200,"d":"200 $"},{"$f":"SUMIF(Tableau2[Catégorie],Tableau1[[#This Row],[Catégories]],Tableau2[Montant])","v":{"v":0,"d":"0 $"}},{"$f":"IFERROR(Tableau1[[#This Row],[Budget planifié]]-Tableau1[[#This Row],[Budget détaillé]],\"\")","v":{"v":200,"d":"200 $"}}]
[null,"Budget total",{"$f":"SUBTOTAL(109,Tableau1[Budget planifié])","v":{"v":1900,"d":"1,900 $"}},{"$f":"SUBTOTAL(109,Tableau1[Budget détaillé])","v":{"v":1600,"d":"1,600 $"}},{"$f":"SUBTOTAL(109,Tableau1[Disponible / (Plus)])","v":{"v":300,"d":"300 $"}}]
[]
[null,"DÉTAILS DES DÉPENSES"]
[null,"Description","Catégorie","Quantité","Coût unitaire","Montant"]
[null,"Prix d'un billet d'avion.  ","Transports",2,{"v":300,"d":"300 $"},{"$f":"IFERROR(Tableau2[[#This Row],[Quantité]]*Tableau2[[#This Row],[Coût unitaire]],\"\")","v":{"v":600,"d":"600 $"}}]
[null,"Bus et taxi, 2 jours","Transports",4,{"v":30,"d":"30 $"},{"$f":"IFERROR(Tableau2[[#This Row],[Quantité]]*Tableau2[[#This Row],[Coût unitaire]],\"\")","v":{"v":120,"d":"120 $"}}]
[null,"Hôtel (2 nuits)","Hébergement",2,{"v":150,"d":"150 $"},{"$f":"IFERROR(Tableau2[[#This Row],[Quantité]]*Tableau2[[#This Row],[Coût unitaire]],\"\")","v":{"v":300,"d":"300 $"}}]
[null,"Nourriture, 2 jours","Nourriture",2,{"v":40,"d":"40 $"},{"$f":"IFERROR(Tableau2[[#This Row],[Quantité]]*Tableau2[[#This Row],[Coût unitaire]],\"\")","v":{"v":80,"d":"80 $"}}]
[null,"Jour 1, tickets de concert","Devoirs",2,{"v":250,"d":"250 $"},{"$f":"IFERROR(Tableau2[[#This Row],[Quantité]]*Tableau2[[#This Row],[Coût unitaire]],\"\")","v":{"v":500,"d":"500 $"}}]
[null,"Entrez d’autres dépenses",{"$nulls":3},{"$f":"IFERROR(Tableau2[[#This Row],[Quantité]]*Tableau2[[#This Row],[Coût unitaire]],\"\")","v":{"v":0,"d":"0 $"}}]